fUST/lending_fUST_20250530
["ID","MTS","AMOUNT","RATE_DAILY","PERIOD"]
[363144766,1748598634103,-500.0,0.00019299,2]
[363144767,1748598634112,-500.0,0.00019314,2]
[363144768,1748598634123,-464.82802164,0.00019348,2]
[363144769,1748598634133,-286.69145478,0.00019352,2]
[363144770,1748598634142,-165.68,0.00019405,2]
[363144771,1748598634152,-420.0,0.00019418,2]
[363144772,1748598634162,-430.0,0.00019452,2]
[363144773,1748598634171,-430.0,0.00019452,2]
[363144774,1748598634181,-672.98,0.00019452,2]
[363144775,1748598634191,-430.0,0.00019452,2]
[363144776,1748598634201,-430.0,0.00019452,2]
[363144777,1748598634211,-438.9424602,0.00019452,2]
[363144778,1748598634220,-430.0,0.00019452,2]
[363144779,1748598634230,-515.2382068,0.00019452,2]
[363144780,1748598634240,-430.0,0.00019452,2]
[363144781,1748598634249,-430.0,0.00019452,2]
[363144782,1748598634259,-430.0,0.00019452,2]
[363144783,1748598634269,-430.0,0.00019452,2]
[363144784,1748598634281,-430.0,0.00019452,2]
[363144785,1748598634291,-430.0,0.00019452,2]
[363144786,1748598634301,-283.50399394,0.00019452,2]
[363144787,1748598634310,-559.17,0.00019452,2]
[363144788,1748598634320,-430.0,0.00019452,2]
[363144789,1748598634331,-1264.63,0.00019452,2]
[363144790,1748598634340,-430.0,0.00019452,2]
[363144791,1748598634351,-430.0,0.00019452,2]
[363144792,1748598634360,-430.0,0.00019452,2]
[363144793,1748598634370,-430.0,0.00019452,2]
[363144794,1748598634378,-430.0,0.00019452,2]
[363144795,1748598634387,-468.30399999,0.00019452,2]
[363144796,1748598634397,-1074.18,0.00019452,2]
[363144797,1748598634406,-430.0,0.00019452,2]
[363144798,1748598634415,-430.0,0.00019452,2]
[363144799,1748598634425,-430.0,0.00019452,2]
[363144800,1748598634435,-430.0,0.00019452,2]
[363144801,1748598634445,-430.0,0.00019452,2]
[363144802,1748598634455,-430.0,0.00019452,2]
[363144803,1748598634464,-430.0,0.00019452,2]
[363144804,1748598634474,-485.52352603,0.00019452,2]
[363144805,1748598634483,-430.0,0.00019452,2]
[363144806,1748598634492,-430.0,0.00019452,2]
[363144807,1748598634502,-430.0,0.00019452,2]
[363144808,1748598634511,-430.0,0.00019452,2]
[363144809,1748598634523,-430.0,0.00019452,2]
[363144810,1748598634532,-173.75810959,0.00019452,2]
[363144811,1748598634542,-8811.06,0.00019452,2]
[363144812,1748598634552,-4378.87,0.00019452,2]
[363144813,1748598634561,-430.0,0.00019452,2]
[363144814,1748598634572,-430.0,0.00019452,2]
[363144815,1748598634581,-430.0,0.00019452,2]
[363144816,1748598634591,-572.77,0.00019452,2]
[363144817,1748598634601,-430.0,0.00019452,2]
[363144818,1748598634611,-430.0,0.00019452,2]
[363144819,1748598634621,-7194.52,0.00019452,2]
[363144820,1748598634631,-430.0,0.00019452,2]
[363144821,1748598634641,-937.26,0.00019452,2]
[363144822,1748598634650,-430.0,0.00019452,2]
[363144823,1748598634660,-3421.14,0.00019452,2]
[363144824,1748598634670,-2375.51,0.00019452,2]
[363144825,1748598634679,-430.0,0.00019452,2]
[363144826,1748598634688,-486.48,0.00019452,2]
[363144827,1748598634698,-430.0,0.00019452,2]
[363144828,1748598634708,-2332.2,0.00019452,2]
[363144829,1748598634718,-430.0,0.00019452,2]
[363144830,1748598634727,-415.64582281,0.00019452,2]
[363144831,1748598634737,-430.0,0.00019452,2]
[363144832,1748598634747,-1967.3,0.00019452,2]
[363144833,1748598634759,-430.0,0.00019452,2]
[363144834,1748598634769,-430.0,0.00019452,2]
[363144835,1748598634781,-430.0,0.00019452,2]
[363144836,1748598634791,-430.0,0.00019452,2]
[363144837,1748598634802,-430.0,0.00019452,2]
[363144838,1748598634811,-9047.94,0.00019452,2]
[363144839,1748598634821,-430.0,0.00019452,2]
[363144840,1748598634831,-1226.08,0.00019452,2]
[363144841,1748598634841,-430.0,0.00019452,2]
[363144842,1748598634851,-430.0,0.00019452,2]
[363144843,1748598634860,-396.85746452,0.00019452,2]
[363144844,1748598634870,-1098.79,0.00019452,2]
[363144845,1748598634879,-1146.8,0.00019452,2]
[363144846,1748598634888,-430.0,0.00019452,2]
[363144847,1748598634898,-430.0,0.00019452,2]
[363144848,1748598634907,-8721.21,0.00019452,2]
[363144849,1748598634917,-430.0,0.00019452,2]
[363144850,1748598634926,-430.0,0.00019452,2]
[363144851,1748598634935,-430.0,0.00019452,2]
[363144852,1748598634945,-430.0,0.00019452,2]
[363144853,1748598634954,-430.0,0.00019452,2]
[363144854,1748598634963,-785.35,0.00019452,2]
[363144855,1748598634973,-1207.05,0.00019452,2]
[363144856,1748598634982,-962.5,0.00019452,2]
[363144857,1748598634991,-430.0,0.00019452,2]
[363144858,1748598635000,-788.9,0.00019452,2]
[363144859,1748598635010,-430.0,0.00019452,2]
[363144860,1748598635019,-1189.23,0.00019452,2]
[363144861,1748598635031,-617.56,0.00019452,2]
[363144862,1748598635040,-5899.35,0.00019452,2]
[363144863,1748598635050,-430.0,0.00019452,2]
[363144864,1748598635060,-430.0,0.00019452,2]
[363144865,1748598635069,-430.0,0.00019452,2]
[363144866,1748598635079,-430.0,0.00019452,2]
[363144867,1748598635088,-7395.45,0.00019452,2]
[363144868,1748598635097,-430.0,0.00019452,2]
[363144869,1748598635106,-680.28,0.00019452,2]
[363144870,1748598635115,-2739.15,0.00019452,2]
[363144871,1748598635124,-430.0,0.00019452,2]
[363144872,1748598635133,-430.0,0.00019452,2]
[363144873,1748598635143,-430.0,0.00019452,2]
[363144874,1748598635152,-465.69,0.00019452,2]
[363144875,1748598635161,-430.0,0.00019452,2]
[363144876,1748598635171,-2785.31,0.00019452,2]
[363144877,1748598635180,-2161.26,0.00019452,2]
[363144878,1748598635189,-750.51,0.00019452,2]
[363144879,1748598635199,-430.0,0.00019452,2]
[363144880,1748598635208,-430.0,0.00019452,2]
[363144881,1748598635218,-430.0,0.00019452,2]
[363144882,1748598635227,-430.0,0.00019452,2]
[363144883,1748598635236,-430.0,0.00019452,2]
[363144884,1748598635245,-430.0,0.00019452,2]
[363144885,1748598635255,-430.0,0.00019452,2]
[363144886,1748598635264,-430.0,0.00019452,2]
[363144887,1748598635275,-1597.56,0.00019452,2]
[363144888,1748598635284,-430.0,0.00019452,2]
[363144889,1748598635295,-430.0,0.00019452,2]
[363144890,1748598635304,-430.0,0.00019452,2]
[363144891,1748598635316,-430.0,0.00019452,2]
[363144892,1748598635326,-430.0,0.00019452,2]
[363144893,1748598635335,-1383.95,0.00019452,2]
[363144894,1748598635344,-430.0,0.00019452,2]
[363144895,1748598635354,-784.17,0.00019452,2]
[363144896,1748598635363,-430.0,0.00019452,2]
[363144897,1748598635373,-7194.69,0.00019452,2]
[363144898,1748598635383,-430.0,0.00019452,2]
[363144899,1748598635393,-775.45,0.00019452,2]
[363144900,1748598635403,-430.0,0.00019452,2]
[363144901,1748598635412,-547.82566944,0.00019452,2]
[363144902,1748598635421,-430.0,0.00019452,2]
[363144903,1748598635430,-215.0738,0.00019515,2]
[363144904,1748598635438,-464.82802164,0.0001959,2]
[363144905,1748598635447,-5000.0,0.000196,3]
[363144906,1748598635456,-708.0,0.00019656,2]
[363144907,1748598635465,-2228.0,0.00019656,2]
[363144908,1748598635474,-405.0,0.00019656,2]
[363144909,1748598635483,-430.0,0.00019725,2]
[363144910,1748598635492,-430.0,0.00019725,2]
[363144911,1748598635501,-430.0,0.00019725,2]
[363144912,1748598635511,-430.0,0.00019725,2]
[363144913,1748598635519,-430.0,0.00019725,2]
[363144914,1748598635531,-400.0,0.00019725,2]
[363144915,1748598635539,-430.0,0.00019725,2]
[363144916,1748598635548,-430.0,0.00019725,2]
[363144917,1748598635557,-430.0,0.00019725,2]
[363144918,1748598635567,-430.0,0.00019725,2]
[363144919,1748598635575,-430.0,0.00019725,2]
[363144920,1748598635585,-430.0,0.00019725,2]
[363144921,1748598635593,-430.0,0.00019725,2]
[363144922,1748598635602,-430.0,0.00019725,2]
[363144923,1748598635611,-430.0,0.00019725,2]
[363144924,1748598635620,-430.0,0.00019725,2]
[363144925,1748598635631,-154.58089588,0.00019725,2]
[363144926,1748598635639,-235.30041474,0.00019725,2]
[363144927,1748598635648,-430.0,0.00019725,2]
[363144928,1748598635657,-430.0,0.00019725,2]
[363144929,1748598635666,-430.0,0.00019725,2]
[363144930,1748598635674,-430.0,0.00019725,2]
[363144931,1748598635682,-293.12703312,0.00019725,2]
[363144932,1748598635692,-430.0,0.00019725,2]
[363144933,1748598635701,-430.0,0.00019725,2]
[363144934,1748598635711,-301.82324122,0.00019725,2]
[363144935,1748598635720,-430.0,0.00019725,2]
[363144936,1748598635730,-430.0,0.00019725,2]
[363144937,1748598635740,-430.0,0.00019725,2]
[363144938,1748598635750,-430.0,0.00019725,2]
[363144939,1748598635763,-430.0,0.00019725,2]
[363144940,1748598635775,-430.0,0.00019725,2]
[363144941,1748598635785,-430.0,0.00019725,2]
[363144942,1748598635795,-430.0,0.00019725,2]
[363144943,1748598635804,-430.0,0.00019725,2]
[363144944,1748598635814,-430.0,0.00019725,2]
[363144945,1748598635823,-226.47044542,0.00019725,2]
[363144946,1748598635836,-160.0,0.00019725,2]
[363144947,1748598635846,-430.0,0.00019725,2]
[363144948,1748598635855,-430.0,0.00019725,2]
[363144949,1748598635865,-430.0,0.00019725,2]
[363144950,1748598635876,-430.0,0.00019725,2]
[363144951,1748598635885,-430.0,0.00019725,2]
[363144952,1748598635894,-430.0,0.00019725,2]
[363144953,1748598635903,-430.0,0.00019725,2]
[363144954,1748598635912,-430.0,0.00019725,2]
[363144955,1748598635923,-430.0,0.00019725,2]
[363144956,1748598635932,-430.0,0.00019725,2]
[363144957,1748598635942,-1000.0,0.00019725,2]
[363144958,1748598635951,-430.0,0.00019725,2]
[363144959,1748598635961,-694.32,0.00019725,2]
[363144960,1748598635971,-430.0,0.00019725,2]
[363144961,1748598635980,-430.0,0.00019725,2]
[363144962,1748598635989,-430.0,0.00019725,2]
[363144963,1748598635999,-430.0,0.00019725,2]
[363144964,1748598636008,-1523.22,0.00019725,2]
[363144965,1748598636018,-447.91,0.00019725,2]
[363144966,1748598636030,-403.35208697,0.00019725,2]
[363144967,1748598636040,-430.0,0.00019725,2]
[363144968,1748598636049,-350.0,0.00019725,2]
[363144969,1748598636058,-430.0,0.00019725,2]
[363144970,1748598636068,-430.0,0.00019725,2]
[363144971,1748598636077,-438.21954181,0.00019725,2]
[363144972,1748598636087,-430.0,0.00019725,2]
[363144973,1748598636096,-430.0,0.00019725,2]
[363144974,1748598636106,-430.0,0.00019725,2]
[363144975,1748598636115,-1434.38,0.00019725,2]
[363144976,1748598636124,-430.0,0.00019725,2]
[363144977,1748598636134,-430.0,0.00019725,2]
[363144978,1748598636143,-1598.35,0.00019725,2]
[363144979,1748598636153,-430.0,0.00019725,2]
[363144980,1748598636162,-430.0,0.00019725,2]
[363144981,1748598636172,-430.0,0.00019725,2]
[363144982,1748598636182,-430.0,0.00019725,2]
[363144983,1748598636192,-430.0,0.00019725,2]
[363144984,1748598636201,-430.0,0.00019725,2]
[363144985,1748598636211,-164.93971599,0.00019725,2]
[363144986,1748598636221,-430.0,0.00019725,2]
[363144987,1748598636230,-430.0,0.00019725,2]
[363144988,1748598636242,-430.0,0.00019725,2]
[363144989,1748598636251,-430.0,0.00019725,2]
[363144990,1748598636260,-465.00765064,0.00019725,2]
[363144991,1748598636269,-430.0,0.00019725,2]
[363144992,1748598636281,-430.0,0.00019725,2]
[363144993,1748598636290,-430.0,0.00019725,2]
[363144994,1748598636300,-430.0,0.00019725,2]
[363144995,1748598636310,-202.46470638,0.00019726,2]
[363144996,1748598636319,-192.87577588,0.00019726,2]
[363144997,1748598636329,-672.98,0.00019726,2]
[363144998,1748598636338,-430.0,0.00019726,2]
[363144999,1748598636348,-430.0,0.00019726,2]
[363145000,1748598636366,-430.0,0.00019726,2]
[363145001,1748598636376,-430.0,0.00019726,2]
[363145002,1748598636385,-430.0,0.00019726,2]
[363145003,1748598636395,-430.0,0.00019726,2]
[363145004,1748598636405,-430.0,0.00019726,2]
[363145005,1748598636416,-430.0,0.00019726,2]
[363145006,1748598636429,-430.0,0.00019726,2]
[363145007,1748598636438,-559.17,0.00019726,2]
[363145008,1748598636447,-430.0,0.00019726,2]
[363145009,1748598636456,-1264.63,0.00019726,2]
[363145010,1748598636466,-430.0,0.00019726,2]
[363145011,1748598636476,-430.0,0.00019726,2]
[363145012,1748598636486,-430.0,0.00019726,2]
[363145013,1748598636495,-430.0,0.00019726,2]
[363145014,1748598636504,-1074.18,0.00019726,2]
[363145015,1748598636514,-430.0,0.00019726,2]
[363145016,1748598636523,-430.0,0.00019726,2]
[363145017,1748598636533,-430.0,0.00019726,2]
[363145018,1748598636543,-430.0,0.00019726,2]
[363145019,1748598636553,-430.0,0.00019726,2]
[363145020,1748598636563,-430.0,0.00019726,2]
[363145021,1748598636574,-430.0,0.00019726,2]
[363145022,1748598636583,-430.0,0.00019726,2]
[363145023,1748598636593,-430.0,0.00019726,2]
[363145024,1748598636602,-430.0,0.00019726,2]
[363145025,1748598636611,-430.0,0.00019726,2]
[363145026,1748598636621,-354.2686671,0.00019726,2]
[363145027,1748598636639,-75.7313329,0.00019726,2]
[363145028,1748598636648,-1144.01180225,0.00019726,2]
[363145029,1748598636669,-500.0,0.00019096,2]
[363145030,1748598636679,-128.45,0.00019096,2]
[363145031,1748598636691,-288.80998574,0.00019096,2]
[363145032,1748598636702,-82.74001426,0.00019096,2]
[363145033,1748598636711,-7667.04819775,0.00019726,2]
[363145034,1748598636720,-4378.87,0.00019726,2]
[363145035,1748598636730,-430.0,0.00019726,2]
[363145036,1748598636739,-430.0,0.00019726,2]
[363145037,1748598636748,-430.0,0.00019726,2]
[363145038,1748598636759,-572.77,0.00019726,2]
[363145039,1748598636769,-430.0,0.00019726,2]
[363145040,1748598636779,-430.0,0.00019726,2]
[363145041,1748598636788,-7194.52,0.00019726,2]
[363145042,1748598636798,-430.0,0.00019726,2]
[363145043,1748598636807,-937.26,0.00019726,2]
[363145044,1748598636816,-430.0,0.00019726,2]
[363145045,1748598636826,-3421.14,0.00019726,2]
[363145046,1748598636836,-2375.51,0.00019726,2]
[363145047,1748598636845,-430.0,0.00019726,2]
[363145048,1748598636854,-486.48,0.00019726,2]
[363145049,1748598636864,-430.0,0.00019726,2]
[363145050,1748598636873,-2332.2,0.00019726,2]
[363145051,1748598636883,-430.0,0.00019726,2]
[363145052,1748598636894,-430.0,0.00019726,2]
[363145053,1748598636904,-1750.62396615,0.00019726,2]
[363145100,1748598637875,-500.0,0.00019096,2]
[363145103,1748598637885,-201.58550337,0.00019096,2]
[363145106,1748598637895,-204.51507535,0.00019096,2]
[363145108,1748598637905,-430.0,0.00019178,2]
[363145110,1748598637914,-216.67603385,0.00019726,2]
[363145112,1748598637924,-430.0,0.00019726,2]
[363145114,1748598637935,-514.62518768,0.00019726,2]
[363145116,1748598637945,-430.0,0.00019726,2]
[363145118,1748598637957,-430.0,0.00019726,2]
[363145121,1748598637967,-4.36720225,0.00019726,2]
[363145123,1748598637985,-430.0,0.00019178,2]
[363145125,1748598637994,-425.63279775,0.00019726,2]
[363145127,1748598638004,-9047.94,0.00019726,2]
[363145129,1748598638014,-430.0,0.00019726,2]
[363145131,1748598638027,-1226.08,0.00019726,2]
[363145134,1748598638037,-430.0,0.00019726,2]
[363145136,1748598638047,-430.0,0.00019726,2]
[363145138,1748598638057,-1098.79,0.00019726,2]
[363145141,1748598638067,-1146.8,0.00019726,2]
[363145144,1748598638077,-430.0,0.00019726,2]
[363145148,1748598638087,-430.0,0.00019726,2]
[363145150,1748598638097,-8721.21,0.00019726,2]
[363145151,1748598638106,-430.0,0.00019726,2]
[363145154,1748598638117,-247.86208713,0.00019726,2]
[363145156,1748598638127,-430.0,0.00019726,2]
[363145158,1748598638137,-430.0,0.00019726,2]
[363145160,1748598638146,-430.0,0.00019726,2]
[363145162,1748598638156,-785.35,0.00019726,2]
[363145164,1748598638166,-1207.05,0.00019726,2]
[363145166,1748598638175,-962.5,0.00019726,2]
[363145168,1748598638185,-788.9,0.00019726,2]
[363145170,1748598638194,-430.0,0.00019726,2]
[363145172,1748598638204,-430.0,0.00019726,2]
[363145174,1748598638214,-1189.23,0.00019726,2]
[363145176,1748598638223,-617.56,0.00019726,2]
[363145178,1748598638232,-5899.35,0.00019726,2]
[363145180,1748598638242,-430.0,0.00019726,2]
[363145182,1748598638251,-387.51861248,0.00019726,2]
[363145184,1748598638261,-430.0,0.00019726,2]
[363145186,1748598638271,-430.0,0.00019726,2]
[363145188,1748598638285,-7395.45,0.00019726,2]
[363145190,1748598638294,-430.0,0.00019726,2]
[363145192,1748598638304,-680.28,0.00019726,2]
[363145194,1748598638313,-2739.15,0.00019726,2]
[363145196,1748598638323,-430.0,0.00019726,2]
[363145198,1748598638332,-430.0,0.00019726,2]
[363145200,1748598638342,-430.0,0.00019726,2]
[363145202,1748598638352,-465.69,0.00019726,2]
[363145204,1748598638361,-430.0,0.00019726,2]
[363145206,1748598638371,-2785.31,0.00019726,2]
[363145208,1748598638380,-2161.26,0.00019726,2]
[363145210,1748598638389,-750.51,0.00019726,2]
[363145212,1748598638399,-430.0,0.00019726,2]
[363145214,1748598638408,-430.0,0.00019726,2]
[363145216,1748598638418,-430.0,0.00019726,2]
[363145218,1748598638428,-430.0,0.00019726,2]
[363145220,1748598638438,-430.0,0.00019726,2]
[363145222,1748598638448,-430.0,0.00019726,2]
[363145224,1748598638457,-430.0,0.00019726,2]
[363145226,1748598638467,-430.0,0.00019726,2]
[363145228,1748598638477,-1597.56,0.00019726,2]
[363145230,1748598638487,-430.0,0.00019726,2]
[363145232,1748598638496,-430.0,0.00019726,2]
[363145234,1748598638506,-430.0,0.00019726,2]
[363145236,1748598638515,-430.0,0.00019726,2]
[363145238,1748598638525,-430.0,0.00019726,2]
[363145240,1748598638536,-1383.95,0.00019726,2]
[363145242,1748598638545,-210.12187209,0.00019726,2]
[363145244,1748598638555,-784.17,0.00019726,2]
[363145246,1748598638564,-430.0,0.00019726,2]
[363145248,1748598638573,-7194.69,0.00019726,2]
[363145249,1748598638583,-430.0,0.00019726,2]
[363145252,1748598638593,-775.45,0.00019726,2]
[363145253,1748598638602,-430.0,0.00019726,2]
[363145255,1748598638612,-430.0,0.00019726,2]
[363145257,1748598638621,-500.0,0.00019773,2]
[363145259,1748598638631,-243.70054126,0.00019775,2]
[363145261,1748598638643,-1161.98,0.000198,2]
[363145263,1748598638655,-186.0,0.000198,3]
[363145265,1748598638665,-186.0,0.000198,3]
[363145267,1748598638675,-186.0,0.000198,3]
[363145269,1748598638685,-464.82802164,0.00019831,2]
[363145271,1748598638695,-286.69145477,0.00019968,2]
[363145273,1748598638705,-212.7380601,0.00019981,2]
[363145275,1748598638714,-423.39538199,0.00019981,2]
[363145277,1748598638724,-160.0,0.00019981,2]
[363145279,1748598638733,-160.0,0.00019981,2]
[363145281,1748598638743,-430.0,0.00019999,2]
[363145283,1748598638753,-430.0,0.00019999,2]
[363145285,1748598638765,-430.0,0.00019999,2]
[363145287,1748598638783,-430.0,0.00019999,2]
[363145289,1748598638792,-430.0,0.00019999,2]
[363145291,1748598638802,-430.0,0.00019999,2]
[363145293,1748598638813,-430.0,0.00019999,2]
[363145295,1748598638823,-430.0,0.00019999,2]
[363145297,1748598638833,-430.0,0.00019999,2]
[363145299,1748598638843,-503.55016483,0.00019999,2]
[363145301,1748598638853,-430.0,0.00019999,2]
[363145303,1748598638864,-430.0,0.00019999,2]
[363145305,1748598638875,-430.0,0.00019999,2]
[363145307,1748598638886,-430.0,0.00019999,2]
[363145310,1748598638896,-430.0,0.00019999,2]
[363145312,1748598638907,-493.74444198,0.00019999,2]
[363145313,1748598638918,-430.0,0.00019999,2]
[363145316,1748598638927,-430.0,0.00019999,2]
[363145318,1748598638937,-430.0,0.00019999,2]
[363145319,1748598638946,-430.0,0.00019999,2]
[363145321,1748598638956,-430.0,0.00019999,2]
[363145323,1748598638966,-430.0,0.00019999,2]
[363145325,1748598638975,-430.0,0.00019999,2]
[363145327,1748598638984,-430.0,0.00019999,2]
[363145330,1748598638993,-430.0,0.00019999,2]
[363145331,1748598639002,-430.0,0.00019999,2]
[363145333,1748598639012,-560.0,0.00019999,2]
[363145336,1748598639021,-430.0,0.00019999,2]
[363145338,1748598639036,-366.92895119,0.00019999,2]
[363145340,1748598639046,-430.0,0.00019999,2]
[363145341,1748598639056,-430.0,0.00019999,2]
[363145343,1748598639066,-430.0,0.00019999,2]
[363145346,1748598639076,-430.0,0.00019999,2]
[363145348,1748598639085,-430.0,0.00019999,2]
[363145350,1748598639094,-430.0,0.00019999,2]
[363145352,1748598639103,-441.02982276,0.00019999,2]
[363145354,1748598639112,-430.0,0.00019999,2]
[363145356,1748598639122,-430.0,0.00019999,2]
[363145358,1748598639131,-430.0,0.00019999,2]
[363145360,1748598639141,-1000.0,0.00019999,2]
[363145362,1748598639150,-430.0,0.00019999,2]
[363145364,1748598639159,-694.32,0.00019999,2]
[363145366,1748598639168,-430.0,0.00019999,2]
[363145368,1748598639178,-430.0,0.00019999,2]
[363145370,1748598639188,-430.0,0.00019999,2]
[363145372,1748598639198,-430.0,0.00019999,2]
[363145374,1748598639207,-1523.22,0.00019999,2]
[363145376,1748598639216,-447.91,0.00019999,2]
[363145378,1748598639226,-430.0,0.00019999,2]
[363145380,1748598639235,-430.0,0.00019999,2]
[363145382,1748598639244,-430.0,0.00019999,2]
[363145384,1748598639253,-430.0,0.00019999,2]
[363145386,1748598639261,-430.0,0.00019999,2]
[363145388,1748598639270,-430.0,0.00019999,2]
[363145390,1748598639284,-1434.38,0.00019999,2]
[363145392,1748598639293,-430.0,0.00019999,2]
[363145394,1748598639303,-371.07216283,0.00019999,2]
[363145396,1748598639313,-1598.35,0.00019999,2]
[363145398,1748598639323,-430.0,0.00019999,2]
[363145400,1748598639333,-430.0,0.00019999,2]
[363145402,1748598639342,-430.0,0.00019999,2]
[363145404,1748598639352,-430.0,0.00019999,2]
[363145406,1748598639361,-430.0,0.00019999,2]
[363145408,1748598639371,-430.0,0.00019999,2]
[363145410,1748598639381,-470.0,0.00019999,2]
[363145412,1748598639390,-430.0,0.00019999,2]
[363145414,1748598639399,-430.0,0.00019999,2]
[363145416,1748598639409,-430.0,0.00019999,2]
[363145418,1748598639418,-430.0,0.00019999,2]
[363145420,1748598639428,-430.0,0.00019999,2]
[363145422,1748598639437,-430.0,0.00019999,2]
[363145424,1748598639447,-150.0,0.0002,5]
[363145429,1748598639457,-672.98,0.0002,2]
[363145436,1748598639467,-430.0,0.0002,2]
[363145439,1748598639477,-430.0,0.0002,2]
[363145441,1748598639487,-437.65825702,0.0002,2]
[363145443,1748598639497,-430.0,0.0002,2]
[363145445,1748598639506,-430.0,0.0002,2]
[363145447,1748598639516,-430.0,0.0002,2]
[363145449,1748598639530,-234.37104373,0.0002,2]
[363145451,1748598639544,-195.62895627,0.0002,2]
[363145453,1748598639554,-430.0,0.0002,2]
[363145455,1748598639564,-430.0,0.0002,2]
[363145457,1748598639574,-559.17,0.0002,2]
[363145459,1748598639584,-430.0,0.0002,2]
[363145461,1748598639595,-1264.63,0.0002,2]
[363145463,1748598639605,-87.67681305,0.0002,2]
[363145465,1748598639617,-342.32318695,0.0002,2]
[363145467,1748598639627,-430.0,0.0002,2]
[363145469,1748598639637,-430.0,0.0002,2]
[363145471,1748598639647,-430.0,0.0002,2]
[363145473,1748598639657,-1074.18,0.0002,2]
[363145475,1748598639667,-510.35528938,0.0002,2]
[363145477,1748598639677,-430.0,0.0002,2]
[363145479,1748598639686,-430.0,0.0002,2]
[363145481,1748598639696,-430.0,0.0002,2]
[363145483,1748598639706,-430.0,0.0002,2]
[363145485,1748598639715,-300.48854783,0.0002,2]
[363145487,1748598639725,-297.05067932,0.0002,2]
[363145489,1748598639735,-430.0,0.0002,2]
[363145491,1748598639745,-430.0,0.0002,2]
[363145493,1748598639759,-203.62762939,0.0002,2]
[363145495,1748598639768,-430.0,0.0002,2]
[363145497,1748598639781,-8811.06,0.0002,2]
[363145499,1748598639790,-4378.87,0.0002,2]
[363145501,1748598639800,-414.29511084,0.0002,2]
[363145503,1748598639810,-430.0,0.0002,2]
[363145505,1748598639820,-430.0,0.0002,2]
[363145507,1748598639831,-572.77,0.0002,2]
[363145509,1748598639842,-430.0,0.0002,2]
[363145511,1748598639853,-430.0,0.0002,2]
[363145513,1748598639863,-7194.52,0.0002,2]
[363145515,1748598639873,-479.74933918,0.0002,2]
[363145517,1748598639883,-937.26,0.0002,2]
[363145519,1748598639893,-206.913369,0.0002,2]
[363145521,1748598639902,-2633.66716465,0.0002,2]
[363145523,1748598639915,-787.47283535,0.0002,2]
[363145525,1748598639924,-467.77841423,0.0002,2]
[363145528,1748598639936,-358.67499999,0.0002,2]
[363145530,1748598639948,-1549.05658578,0.0002,2]
[363145532,1748598639957,-430.0,0.0002,2]
[363145534,1748598639967,-486.48,0.0002,2]
[363145536,1748598639977,-430.0,0.0002,2]
[363145538,1748598639986,-2332.2,0.0002,2]
[363145540,1748598639996,-430.0,0.0002,2]